[Event "Masterklassen 2025"]
[Site "Uppsala, Sweden"]
[Date "2025.06.29"]
[Round "2.3"]
[White "Johnson, Daniel"]
[Black "Jonsson, Jacob"]
[Result "1/2-1/2"]
[TimeControl "90 min for 40 move + 30 min with an increment of 30 sec starting move 1"]
[WhiteFideId "1721283"]
[BlackFideId "1726315"]
[WhiteElo "2175"]
[BlackElo "2112"]

1. e4 {[%clk 01:19:19]} {[%emt 00:11:40]} e6 {[%clk 01:30:38]} {[%emt
00:00:23]} 2. d4 {[%clk 01:19:32]} {[%emt 00:00:16]} d5 {[%clk 01:31:02]}
{[%emt 00:00:07]} 3. exd5 {[%clk 01:19:37]} {[%emt 00:00:25]} exd5 {[%clk
01:31:27]} {[%emt 00:00:05]} 4. Nf3 {[%clk 01:19:58]} {[%emt 00:00:08]} Nc6
{[%clk 01:31:52]} {[%emt 00:00:07]} 5. Bb5 {[%clk 01:19:09]} {[%emt 00:01:18]}
Bd6 {[%clk 01:31:43]} {[%emt 00:00:39]} 6. c4 {[%clk 01:19:12]} {[%emt
00:00:27]} Bd7 {[%clk 01:27:27]} {[%emt 00:04:46]} 7. O-O {[%clk 01:02:12]}
{[%emt 00:17:29]} a6 {[%clk 00:56:06]} {[%emt 00:31:53]} 8. Re1+ {[%clk
01:02:13]} {[%emt 00:00:28]} Be7 {[%clk 00:56:30]} {[%emt 00:00:07]} 9. Bxc6
{[%clk 00:51:44]} {[%emt 00:10:58]} bxc6 {[%clk 00:56:09]} {[%emt 00:00:51]} 10.
c5 {[%clk 00:51:24]} {[%emt 00:00:50]} Kf8 {[%clk 00:46:44]} {[%emt 00:09:55]}
11. Ne5 {[%clk 00:40:29]} {[%emt 00:11:25]} Bf6 {[%clk 00:46:01]} {[%emt
00:01:13]} 12. Nd2 {[%clk 00:39:01]} {[%emt 00:01:58]} Ne7 {[%clk 00:45:42]}
{[%emt 00:00:49]} 13. Nb3 {[%clk 00:29:07]} {[%emt 00:10:23]} Ng6 {[%clk
00:41:08]} {[%emt 00:05:05]} 14. Qd3 {[%clk 00:23:53]} {[%emt 00:05:44]} Bxe5
{[%clk 00:33:16]} {[%emt 00:08:22]} 15. dxe5 {[%clk 00:23:28]} {[%emt
00:00:55]} Qe7 {[%clk 00:33:37]} {[%emt 00:00:09]} 16. Bd2 {[%clk 00:20:02]}
{[%emt 00:03:56]} h5 {[%clk 00:33:17]} {[%emt 00:00:50]} 17. Nd4 {[%clk
00:17:42]} {[%emt 00:02:49]} Kg8 {[%clk 00:26:16]} {[%emt 00:07:32]} 18. Rac1
{[%clk 00:14:31]} {[%emt 00:03:40]} Nf8 {[%clk 00:25:35]} {[%emt 00:01:12]} 19.
f4 {[%clk 00:10:46]} {[%emt 00:04:14]} Ne6 {[%clk 00:19:04]} {[%emt 00:07:02]}
20. f5 {[%clk 00:11:03]} {[%emt 00:00:13]} Nxd4 {[%clk 00:19:26]} {[%emt
00:00:08]} 21. f6 {[%clk 00:11:23]} {[%emt 00:00:09]} Qe6 {[%clk 00:19:47]}
{[%emt 00:00:09]} 22. Qxd4 {[%clk 00:11:29]} {[%emt 00:00:24]} g6 {[%clk
00:19:47]} {[%emt 00:00:31]} 23. h3 {[%clk 00:10:24]} {[%emt 00:01:35]} Qe8
{[%clk 00:18:54]} {[%emt 00:01:23]} 24. e6 {[%clk 00:04:50]} {[%emt 00:06:04]}
Bxe6 {[%clk 00:19:03]} {[%emt 00:00:21]} 25. Re5 {[%clk 00:05:08]} {[%emt
00:00:12]} Qd7 {[%clk 00:16:44]} {[%emt 00:02:49]} 26. Rce1 {[%clk 00:05:32]}
{[%emt 00:00:05]} Kf8 {[%clk 00:16:08]} {[%emt 00:01:06]} 27. Bc3 {[%clk
00:04:59]} {[%emt 00:01:03]} Rh7 {[%clk 00:16:24]} {[%emt 00:00:15]} 28. Qf4
{[%clk 00:03:04]} {[%emt 00:02:25]} Ke8 {[%clk 00:15:39]} {[%emt 00:01:15]} 29.
Bd4 {[%clk 00:02:34]} {[%emt 00:01:00]} Kd8 {[%clk 00:14:46]} {[%emt 00:01:24]}
30. Qd2 {[%clk 00:02:12]} {[%emt 00:00:51]} Kc8 {[%clk 00:14:51]} {[%emt
00:00:25]} 31. R1e3 {[%clk 00:02:26]} {[%emt 00:00:16]} Qe8 {[%clk 00:14:22]}
{[%emt 00:00:59]} 32. Qe1 {[%clk 00:01:59]} {[%emt 00:00:57]} Kd7 {[%clk
00:14:45]} {[%emt 00:00:07]} 33. Qa5 {[%clk 00:01:36]} {[%emt 00:00:54]} Rh8
{[%clk 00:13:49]} {[%emt 00:01:25]} 34. Qc3 {[%clk 00:01:36]} {[%emt 00:00:30]}
Rf8 {[%clk 00:13:54]} {[%emt 00:00:24]} 35. Re1 {[%clk 00:01:43]} {[%emt
00:00:24]} Rb8 {[%clk 00:13:16]} {[%emt 00:01:08]} 36. b3 {[%clk 00:01:59]}
{[%emt 00:00:14]} Kd8 {[%clk 00:12:43]} {[%emt 00:01:04]} 37. Qe3 {[%clk
00:01:38]} {[%emt 00:00:50]} Kd7 {[%clk 00:12:18]} {[%emt 00:00:55]} 38. Qf4
{[%clk 00:00:49]} {[%emt 00:01:19]} Kc8 {[%clk 00:11:43]} {[%emt 00:01:05]} 39.
Qf1 {[%clk 00:00:32]} {[%emt 00:00:47]} Ra8 {[%clk 00:11:56]} {[%emt 00:00:17]}
40. Be3 {[%clk 00:00:31]} {[%emt 00:00:31]} Qd7 {[%clk 00:12:10]} {[%emt
00:00:15]} 41. Bd4 {[%clk 00:20:23]} {[%emt 00:10:38]} Re8 {[%clk 00:35:56]}
{[%emt 00:06:45]} 42. Qf4 {[%clk 00:19:42]} {[%emt 00:01:11]} Kb7 {[%clk
00:35:44]} {[%emt 00:00:42]} 43. Qe3 {[%clk 00:19:34]} {[%emt 00:00:38]} Rab8
{[%clk 00:35:21]} {[%emt 00:00:54]} 44. Qe2 {[%clk 00:15:56]} {[%emt 00:04:06]}
1/2-1/2

[Event "Masterklassen 2025"]
[Site "Uppsala, Sweden"]
[Date "2025.06.29"]
[Round "2.4"]
[White "Kingsley, Elias"]
[Black "Eriksson, Jorgen"]
[Result "1-0"]
[TimeControl "90 min for 40 move + 30 min with an increment of 30 sec starting move 1"]
[WhiteFideId "1775006"]
[BlackFideId "1701967"]
[WhiteElo "2072"]
[BlackElo "2160"]

1. d4 {[%clk 01:30:49]} {[%emt 00:00:09]} d5 {[%clk 01:30:39]} {[%emt
00:00:22]} 2. c4 {[%clk 01:31:10]} {[%emt 00:00:09]} e6 {[%clk 01:30:35]}
{[%emt 00:00:34]} 3. Nf3 {[%clk 01:31:27]} {[%emt 00:00:14]} Nf6 {[%clk
01:29:38]} {[%emt 00:01:26]} 4. Nc3 {[%clk 01:31:46]} {[%emt 00:00:11]} Bb4
{[%clk 01:23:11]} {[%emt 00:06:58]} 5. Bg5 {[%clk 01:31:20]} {[%emt 00:00:55]}
Nbd7 {[%clk 01:21:14]} {[%emt 00:02:27]} 6. e3 {[%clk 01:30:00]} {[%emt
00:01:50]} c5 {[%clk 01:19:52]} {[%emt 00:01:52]} 7. cxd5 {[%clk 01:00:36]}
{[%emt 00:29:54]} exd5 {[%clk 01:18:53]} {[%emt 00:01:29]} 8. Be2 {[%clk
00:37:23]} {[%emt 00:23:42]} Qa5 {[%clk 01:12:52]} {[%emt 00:06:32]} 9. O-O
{[%clk 00:35:37]} {[%emt 00:02:15]} Bxc3 {[%clk 01:08:48]} {[%emt 00:04:35]} 10.
bxc3 {[%clk 00:36:02]} {[%emt 00:00:05]} O-O {[%clk 00:47:24]} {[%emt
00:21:54]} 11. c4 {[%clk 00:33:49]} {[%emt 00:02:43]} dxc4 {[%clk 00:33:58]}
{[%emt 00:13:56]} 12. Bxc4 {[%clk 00:33:29]} {[%emt 00:00:50]} Ne4 {[%clk
00:27:57]} {[%emt 00:06:31]} 13. Bf4 {[%clk 00:30:08]} {[%emt 00:03:51]} Ndf6
{[%clk 00:23:48]} {[%emt 00:04:39]} 14. Qb3 {[%clk 00:26:26]} {[%emt 00:04:12]}
cxd4 {[%clk 00:18:16]} {[%emt 00:06:02]} 15. exd4 {[%clk 00:16:59]} {[%emt
00:09:57]} Qf5 {[%clk 00:18:33]} {[%emt 00:00:14]} 16. Bg3 {[%clk 00:14:47]}
{[%emt 00:02:42]} b6 {[%clk 00:12:33]} {[%emt 00:06:30]} 17. Rfe1 {[%clk
00:11:19]} {[%emt 00:03:57]} Be6 {[%clk 00:09:41]} {[%emt 00:03:22]} 18. d5
{[%clk 00:10:53]} {[%emt 00:00:57]} Bd7 {[%clk 00:08:27]} {[%emt 00:01:44]} 19.
Ne5 {[%clk 00:10:26]} {[%emt 00:00:56]} Nd2 {[%clk 00:07:13]} {[%emt 00:01:44]}
20. Qd3 {[%clk 00:08:27]} {[%emt 00:02:29]} Nxc4 {[%clk 00:07:24]} {[%emt
00:00:19]} 21. Qxc4 {[%clk 00:08:29]} {[%emt 00:00:28]} Rfc8 {[%clk 00:05:23]}
{[%emt 00:02:31]} 22. Qb3 {[%clk 00:06:57]} {[%emt 00:02:01]} Qc2 {[%clk
00:03:47]} {[%emt 00:02:07]} 23. Nxd7 {[%clk 00:06:28]} {[%emt 00:00:59]} Nxd7
{[%clk 00:04:10]} {[%emt 00:00:07]} 24. Re8+ {[%clk 00:06:42]} {[%emt
00:00:15]} Nf8 {[%clk 00:04:16]} {[%emt 00:00:25]} 25. Qxc2 {[%clk 00:07:01]}
{[%emt 00:00:11]} 1-0

[Event "Masterklassen 2025"]
[Site "Uppsala, Sweden"]
[Date "2025.06.29"]
[Round "2.5"]
[White "Stanley, Mikael"]
[Black "Odell-Johansson, Leo"]
[Result "0-1"]
[TimeControl "90 min for 40 move + 30 min with an increment of 30 sec starting move 1"]
[WhiteFideId "1703730"]
[BlackFideId "1722727"]
[WhiteElo "2150"]
[BlackElo "1991"]

1. e4 {[%clk 01:30:52]} {[%emt 00:00:08]} c5 {[%clk 01:30:57]} {[%emt
00:00:04]} 2. Nf3 {[%clk 01:31:00]} {[%emt 00:00:22]} Nc6 {[%clk 01:31:21]}
{[%emt 00:00:06]} 3. c3 {[%clk 01:29:23]} {[%emt 00:02:08]} Nf6 {[%clk
01:31:02]} {[%emt 00:00:48]} 4. e5 {[%clk 01:29:30]} {[%emt 00:00:22]} Nd5
{[%clk 01:31:30]} {[%emt 00:00:02]} 5. d4 {[%clk 01:29:52]} {[%emt 00:00:09]}
cxd4 {[%clk 01:31:27]} {[%emt 00:00:33]} 6. cxd4 {[%clk 01:30:11]} {[%emt
00:00:11]} d6 {[%clk 01:31:52]} {[%emt 00:00:05]} 7. Bc4 {[%clk 01:20:50]}
{[%emt 00:09:50]} dxe5 {[%clk 01:31:50]} {[%emt 00:00:33]} 8. dxe5 {[%clk
01:20:35]} {[%emt 00:00:46]} Ndb4 {[%clk 01:31:13]} {[%emt 00:01:06]} 9. Qb3
{[%clk 01:12:37]} {[%emt 00:08:27]} e6 {[%clk 01:30:59]} {[%emt 00:00:44]} 10.
O-O {[%clk 01:07:18]} {[%emt 00:05:49]} Na5 {[%clk 01:31:09]} {[%emt 00:00:21]}
11. Bb5+ {[%clk 01:05:50]} {[%emt 00:01:57]} Bd7 {[%clk 01:31:18]} {[%emt
00:00:22]} 12. Qa4 {[%clk 01:04:23]} {[%emt 00:01:57]} Bxb5 {[%clk 01:31:13]}
{[%emt 00:00:34]} 13. Qxb5+ {[%clk 01:04:50]} {[%emt 00:00:03]} Nac6 {[%clk
01:31:02]} {[%emt 00:00:41]} 14. Nc3 {[%clk 00:59:49]} {[%emt 00:05:32]} a6
{[%clk 01:27:16]} {[%emt 00:04:15]} 15. Qc4 {[%clk 00:53:47]} {[%emt 00:06:32]}
Qd3 {[%clk 01:08:51]} {[%emt 00:18:55]} 16. Qg4 {[%clk 00:46:50]} {[%emt
00:07:28]} Qg6 {[%clk 01:03:08]} {[%emt 00:06:13]} 17. Qh3 {[%clk 00:40:19]}
{[%emt 00:07:01]} Be7 {[%clk 00:56:10]} {[%emt 00:07:28]} 18. Bf4 {[%clk
00:32:11]} {[%emt 00:08:38]} O-O {[%clk 00:37:15]} {[%emt 00:19:25]} 19. Rae1
{[%clk 00:22:53]} {[%emt 00:09:47]} Nd3 {[%clk 00:27:17]} {[%emt 00:10:27]} 20.
Re4 {[%clk 00:23:04]} {[%emt 00:00:20]} Rad8 {[%clk 00:16:49]} {[%emt
00:10:59]} 21. Bg3 {[%clk 00:22:10]} {[%emt 00:01:24]} h5 {[%clk 00:16:46]}
{[%emt 00:00:33]} 22. Nh4 {[%clk 00:13:59]} {[%emt 00:08:41]} Qh7 {[%clk
00:16:11]} {[%emt 00:01:05]} 23. f4 {[%clk 00:13:28]} {[%emt 00:01:01]} Rd4
{[%clk 00:10:05]} {[%emt 00:06:36]} 24. Re2 {[%clk 00:11:14]} {[%emt 00:02:43]}
Bxh4 {[%clk 00:10:04]} {[%emt 00:00:32]} 25. Qxh4 {[%clk 00:10:47]} {[%emt
00:00:56]} Ndxe5 {[%clk 00:09:58]} {[%emt 00:00:37]} 26. fxe5 {[%clk 00:07:38]}
{[%emt 00:03:38]} Rxh4 {[%clk 00:10:15]} {[%emt 00:00:13]} 27. Bxh4 {[%clk
00:08:07]} {[%emt 00:00:01]} Qd3 {[%clk 00:06:33]} {[%emt 00:04:12]} 28. Rf3
{[%clk 00:07:37]} {[%emt 00:01:01]} Qd4+ {[%clk 00:06:48]} {[%emt 00:00:14]} 29.
Bf2 {[%clk 00:07:57]} {[%emt 00:00:10]} Qb4 {[%clk 00:06:03]} {[%emt 00:01:14]}
30. Rh3 {[%clk 00:08:04]} {[%emt 00:00:24]} Rd8 {[%clk 00:04:41]} {[%emt
00:01:52]} 31. Rh4 {[%clk 00:06:54]} {[%emt 00:01:41]} Qa5 {[%clk 00:04:09]}
{[%emt 00:01:02]} 32. Rxh5 {[%clk 00:06:04]} {[%emt 00:01:19]} f5 {[%clk
00:04:17]} {[%emt 00:00:22]} 33. g4 {[%clk 00:05:37]} {[%emt 00:00:58]} g6
{[%clk 00:03:46]} {[%emt 00:01:01]} 34. Rh3 {[%clk 00:04:22]} {[%emt 00:01:45]}
Nxe5 {[%clk 00:04:08]} {[%emt 00:00:08]} 35. gxf5 {[%clk 00:04:44]} {[%emt
00:00:08]} exf5 {[%clk 00:03:53]} {[%emt 00:00:45]} 36. Bh4 {[%clk 00:04:08]}
{[%emt 00:01:05]} Rd4 {[%clk 00:03:55]} {[%emt 00:00:29]} 37. Bf6 {[%clk
00:03:23]} {[%emt 00:01:15]} Rg4+ {[%clk 00:04:06]} {[%emt 00:00:18]} 38. Kh1
{[%clk 00:02:02]} {[%emt 00:01:52]} Qc5 {[%clk 00:04:17]} {[%emt 00:00:18]} 39.
Rg3 {[%clk 00:00:43]} {[%emt 00:01:50]} Rxg3 {[%clk 00:04:40]} {[%emt
00:00:07]} 40. hxg3 {[%clk 00:01:06]} {[%emt 00:00:07]} Qc6+ {[%clk 00:04:05]}
{[%emt 00:01:03]} 0-1

[Event "Masterklassen 2025"]
[Site "Uppsala, Sweden"]
[Date "2025.06.29"]
[Round "2.6"]
[White "Malm, Simon"]
[Black "Dingertz, Erik"]
[Result "1-0"]
[TimeControl "90 min for 40 move + 30 min with an increment of 30 sec starting move 1"]
[WhiteFideId "1759825"]
[BlackFideId "1741578"]
[WhiteElo "2007"]
[BlackElo "2121"]

1. d4 {[%clk 01:30:57]} {[%emt 00:00:02]} Nf6 {[%clk 01:30:51]} {[%emt
00:00:10]} 2. c4 {[%clk 01:31:20]} {[%emt 00:00:06]} e6 {[%clk 01:31:01]}
{[%emt 00:00:19]} 3. Nf3 {[%clk 01:31:43]} {[%emt 00:00:07]} d5 {[%clk
01:31:21]} {[%emt 00:00:11]} 4. Nc3 {[%clk 01:31:42]} {[%emt 00:00:30]} Be7
{[%clk 01:31:46]} {[%emt 00:00:05]} 5. Bf4 {[%clk 01:31:18]} {[%emt 00:00:55]}
O-O {[%clk 01:32:08]} {[%emt 00:00:08]} 6. e3 {[%clk 01:30:59]} {[%emt
00:00:49]} b6 {[%clk 01:30:36]} {[%emt 00:02:03]} 7. Bd3 {[%clk 01:25:38]}
{[%emt 00:05:50]} Bb7 {[%clk 01:29:35]} {[%emt 00:01:32]} 8. cxd5 {[%clk
01:22:23]} {[%emt 00:03:44]} exd5 {[%clk 01:27:00]} {[%emt 00:03:05]} 9. h3
{[%clk 01:17:28]} {[%emt 00:05:25]} c5 {[%clk 01:26:11]} {[%emt 00:01:20]} 10.
Rc1 {[%clk 01:16:23]} {[%emt 00:01:34]} Nc6 {[%clk 01:23:09]} {[%emt 00:03:32]}
11. O-O {[%clk 01:15:09]} {[%emt 00:01:44]} Rc8 {[%clk 01:14:10]} {[%emt
00:09:29]} 12. Bf5 {[%clk 01:13:20]} {[%emt 00:02:19]} Ra8 {[%clk 01:12:41]}
{[%emt 00:01:59]} 13. Re1 {[%clk 01:13:21]} {[%emt 00:00:29]} h6 {[%clk
00:46:24]} {[%emt 00:26:47]} 14. Ne5 {[%clk 00:53:47]} {[%emt 00:20:04]} Bd6
{[%clk 00:42:11]} {[%emt 00:04:43]} 15. Qa4 {[%clk 00:40:57]} {[%emt 00:13:20]}
Ne7 {[%clk 00:37:46]} {[%emt 00:04:55]} 16. Bb1 {[%clk 00:37:46]} {[%emt
00:03:40]} Re8 {[%clk 00:35:25]} {[%emt 00:02:52]} 17. Nb5 {[%clk 00:31:59]}
{[%emt 00:06:17]} Bb8 {[%clk 00:25:25]} {[%emt 00:10:30]} 18. dxc5 {[%clk
00:31:01]} {[%emt 00:01:28]} bxc5 {[%clk 00:22:13]} {[%emt 00:03:42]} 19. Rxc5
{[%clk 00:29:03]} {[%emt 00:02:29]} Qb6 {[%clk 00:22:22]} {[%emt 00:00:21]} 20.
Rec1 {[%clk 00:27:18]} {[%emt 00:02:15]} Bxe5 {[%clk 00:20:30]} {[%emt
00:02:21]} 21. Bxe5 {[%clk 00:27:40]} {[%emt 00:00:08]} Nd7 {[%clk 00:20:57]}
{[%emt 00:00:04]} 22. Bd4 {[%clk 00:13:20]} {[%emt 00:14:49]} Nxc5 {[%clk
00:21:17]} {[%emt 00:00:10]} 23. Bxc5 {[%clk 00:13:07]} {[%emt 00:00:44]} Qc6
{[%clk 00:16:56]} {[%emt 00:04:50]} 24. Qc2 {[%clk 00:12:48]} {[%emt 00:00:50]}
Ng6 {[%clk 00:17:15]} {[%emt 00:00:10]} 25. Nd4 {[%clk 00:11:32]} {[%emt
00:01:46]} Qf6 {[%clk 00:17:30]} {[%emt 00:00:12]} 26. b4 {[%clk 00:09:51]}
{[%emt 00:02:14]} Bc8 {[%clk 00:15:10]} {[%emt 00:02:50]} 27. Nb5 {[%clk
00:06:33]} {[%emt 00:03:48]} Re4 {[%clk 00:10:29]} {[%emt 00:05:11]} 28. Bd4
{[%clk 00:04:35]} {[%emt 00:02:27]} Qg5 {[%clk 00:06:18]} {[%emt 00:04:42]} 29.
Qc6 {[%clk 00:04:24]} {[%emt 00:00:41]} Bxh3 {[%clk 00:05:43]} {[%emt
00:01:05]} 30. Qxa8+ {[%clk 00:04:18]} {[%emt 00:00:36]} Kh7 {[%clk 00:06:10]}
{[%emt 00:00:03]} 31. Bxe4 {[%clk 00:04:25]} {[%emt 00:00:24]} dxe4 {[%clk
00:02:46]} {[%emt 00:03:53]} 32. Qxe4 {[%clk 00:04:45]} {[%emt 00:00:09]} Bf5
{[%clk 00:02:27]} {[%emt 00:00:50]} 33. Qd5 {[%clk 00:04:01]} {[%emt 00:01:14]}
Nh4 {[%clk 00:02:34]} {[%emt 00:00:23]} 34. Nd6 {[%clk 00:03:41]} {[%emt
00:00:49]} 1-0

[Event "Masterklassen 2025"]
[Site "Uppsala, Sweden"]
[Date "2025.06.29"]
[Round "2.7"]
[White "Johansson, William"]
[Black "Crevatin, Leo"]
[Result "0-1"]
[TimeControl "90 min for 40 move + 30 min with an increment of 30 sec starting move 1"]
[BlackTitle "FM"]
[WhiteFideId "1744070"]
[BlackFideId "1726307"]
[WhiteElo "2026"]
[BlackElo "2248"]

1. e4 {[%clk 01:30:56]} {[%emt 00:00:03]} c6 {[%clk 01:29:26]} {[%emt
00:01:35]} 2. d4 {[%clk 01:31:10]} {[%emt 00:00:15]} d5 {[%clk 01:29:36]}
{[%emt 00:00:21]} 3. exd5 {[%clk 01:31:28]} {[%emt 00:00:12]} cxd5 {[%clk
01:30:00]} {[%emt 00:00:06]} 4. Nf3 {[%clk 01:31:50]} {[%emt 00:00:08]} Nc6
{[%clk 01:28:53]} {[%emt 00:01:37]} 5. Ne5 {[%clk 01:32:09]} {[%emt 00:00:11]}
Nf6 {[%clk 01:27:05]} {[%emt 00:02:18]} 6. Bb5 {[%clk 01:32:28]} {[%emt
00:00:11]} Bd7 {[%clk 01:27:29]} {[%emt 00:00:05]} 7. Nxd7 {[%clk 01:32:33]}
{[%emt 00:00:26]} Qxd7 {[%clk 01:27:10]} {[%emt 00:00:49]} 8. c3 {[%clk
01:32:53]} {[%emt 00:00:09]} e6 {[%clk 01:26:22]} {[%emt 00:01:19]} 9. Nd2
{[%clk 01:32:14]} {[%emt 00:01:09]} Bd6 {[%clk 01:24:26]} {[%emt 00:02:24]} 10.
O-O {[%clk 01:32:16]} {[%emt 00:00:29]} a6 {[%clk 01:23:15]} {[%emt 00:01:42]}
11. Bd3 {[%clk 01:32:34]} {[%emt 00:00:11]} O-O {[%clk 01:22:23]} {[%emt
00:01:21]} 12. Re1 {[%clk 01:32:51]} {[%emt 00:00:13]} h6 {[%clk 01:16:55]}
{[%emt 00:05:59]} 13. Nf1 {[%clk 01:28:21]} {[%emt 00:05:00]} Qc7 {[%clk
01:15:48]} {[%emt 00:01:38]} 14. Ng3 {[%clk 01:23:51]} {[%emt 00:04:59]} Bf4
{[%clk 01:12:49]} {[%emt 00:03:29]} 15. Qf3 {[%clk 01:20:06]} {[%emt 00:04:15]}
Bxc1 {[%clk 01:12:30]} {[%emt 00:00:49]} 16. Raxc1 {[%clk 01:20:27]} {[%emt
00:00:09]} Rfe8 {[%clk 01:08:55]} {[%emt 00:04:04]} 17. Rcd1 {[%clk 01:04:11]}
{[%emt 00:16:48]} Qb6 {[%clk 01:00:03]} {[%emt 00:09:22]} 18. Nh5 {[%clk
00:54:51]} {[%emt 00:09:49]} Nxh5 {[%clk 00:57:38]} {[%emt 00:02:55]} 19. Qxh5
{[%clk 00:55:12]} {[%emt 00:00:09]} Qxb2 {[%clk 00:49:12]} {[%emt 00:08:56]} 20.
Re3 {[%clk 00:55:01]} {[%emt 00:00:41]} Re7 {[%clk 00:48:07]} {[%emt 00:01:36]}
21. Rg3 {[%clk 00:49:02]} {[%emt 00:06:28]} Kf8 {[%clk 00:44:34]} {[%emt
00:04:02]} 22. Bh7 {[%clk 00:46:23]} {[%emt 00:03:09]} Rd7 {[%clk 00:34:40]}
{[%emt 00:10:25]} 23. Qg4 {[%clk 00:40:06]} {[%emt 00:06:47]} f5 {[%clk
00:29:33]} {[%emt 00:05:37]} 24. Qh5 {[%clk 00:33:42]} {[%emt 00:06:54]} Rf7
{[%clk 00:25:22]} {[%emt 00:04:41]} 25. h4 {[%clk 00:26:10]} {[%emt 00:08:02]}
Rc8 {[%clk 00:19:59]} {[%emt 00:05:53]} 26. Rdd3 {[%clk 00:20:52]} {[%emt
00:05:48]} Qc1+ {[%clk 00:18:00]} {[%emt 00:02:28]} 27. Kh2 {[%clk 00:21:06]}
{[%emt 00:00:16]} Ne7 {[%clk 00:16:27]} {[%emt 00:02:04]} 28. Qe2 {[%clk
00:13:38]} {[%emt 00:07:58]} Qf4 {[%clk 00:09:51]} {[%emt 00:07:06]} 29. Kh3
{[%clk 00:04:56]} {[%emt 00:09:11]} g5 {[%clk 00:08:50]} {[%emt 00:01:32]} 30.
hxg5 {[%clk 00:04:21]} {[%emt 00:01:06]} hxg5 {[%clk 00:08:45]} {[%emt
00:00:34]} 31. Qh5 {[%clk 00:03:48]} {[%emt 00:01:03]} Qh4+ {[%clk 00:08:33]}
{[%emt 00:00:42]} 32. Qxh4 {[%clk 00:04:13]} {[%emt 00:00:05]} gxh4 {[%clk
00:09:00]} {[%emt 00:00:03]} 33. Rg6 {[%clk 00:03:40]} {[%emt 00:01:03]} Nxg6
{[%clk 00:07:47]} {[%emt 00:01:43]} 34. Bxg6 {[%clk 00:04:03]} {[%emt
00:00:07]} Rg7 {[%clk 00:07:16]} {[%emt 00:01:01]} 35. Bh5 {[%clk 00:04:26]}
{[%emt 00:00:07]} Rgc7 {[%clk 00:07:21]} {[%emt 00:00:25]} 36. Kxh4 {[%clk
00:04:39]} {[%emt 00:00:18]} Rxc3 {[%clk 00:07:43]} {[%emt 00:00:08]} 37. Rd1
{[%clk 00:04:42]} {[%emt 00:00:26]} Rc1 {[%clk 00:07:24]} {[%emt 00:00:49]} 38.
Rd3 {[%clk 00:04:59]} {[%emt 00:00:12]} R8c3 {[%clk 00:07:30]} {[%emt
00:00:24]} 39. Rd2 {[%clk 00:05:22]} {[%emt 00:00:07]} R1c2 {[%clk 00:06:56]}
{[%emt 00:01:05]} 0-1